fUST/lending_fUST_20240809
["ID","MTS","AMOUNT","RATE_DAILY","PERIOD"]
[334549587,1723192238459,-153.0,0.00022089,2]
[334549588,1723192238467,-153.0,0.00022089,2]
[334549589,1723192238476,-504.22103723,0.00022164,2]
[334549590,1723192238486,-882.14952086,0.0002217,2]
[334549591,1723192238495,-150.112233,0.000224,3]
[334549592,1723192238505,-153.0,0.00022479,2]
[334549593,1723192238514,-153.0,0.00022479,2]
[334549594,1723192238523,-150.112233,0.000225,4]
[334549595,1723192238532,-1152.0,0.00022997,2]
[334549596,1723192238542,-472.16409374,0.00023,2]
[334549597,1723192238551,-8019.43788047,0.00023,2]
[334549598,1723192238560,-157.0,0.00023014,2]
[334549599,1723192238569,-3451.32848433,0.00023071,2]
[334549600,1723192238579,-150.112233,0.000234,2]
[334549601,1723192238589,-150.112233,0.000237,2]
[334549602,1723192238598,-2000.0,0.00023798,2]
[334549603,1723192238607,-500.0,0.00023887,2]
[334549604,1723192238617,-500.0,0.00023887,2]
[334549605,1723192238626,-176.16930895,0.00023887,2]
[334549606,1723192238636,-500.0,0.00023887,2]
[334549607,1723192238646,-335.21294176,0.00023887,2]
[334549608,1723192238656,-500.0,0.00023887,2]
[334549609,1723192238665,-500.0,0.00023887,2]
[334549610,1723192238674,-500.0,0.00023887,2]
[334549611,1723192238684,-500.0,0.00023887,2]
[334549612,1723192238693,-617.36589986,0.00023887,2]
[334549613,1723192238702,-500.0,0.00023887,2]
[334549614,1723192238712,-500.0,0.00023887,2]
[334549615,1723192238721,-500.0,0.00023887,2]
[334549616,1723192238730,-500.0,0.00023887,2]
[334549617,1723192238740,-500.0,0.00023887,2]
[334549618,1723192238749,-500.0,0.00023887,2]
[334549619,1723192238758,-500.0,0.00023887,2]
[334549620,1723192238767,-500.0,0.00023887,2]
[334549621,1723192238776,-500.0,0.00023887,2]
[334549622,1723192238785,-231.45322028,0.00023887,2]
[334549623,1723192238794,-500.0,0.00023887,2]
[334549624,1723192238803,-500.0,0.00023887,2]
[334549625,1723192238813,-500.0,0.00023887,2]
[334549626,1723192238822,-500.0,0.00023887,2]
[334549627,1723192238831,-70604.30224072,0.00023887,11]
[334549628,1723192238840,-60886.16134,0.00023888,3]
[334549629,1723192238851,-12640.38108741,0.000239,2]
[334549630,1723192239024,-151.0,0.0002397,7]
[334549631,1723192239034,-334.334566,0.0002397,7]
[334549632,1723192239044,-334.334566,0.0002397,7]
[334549633,1723192239054,-30443.08067,0.0002399,3]
[334549634,1723192239064,-151.0,0.0002399,7]
[334549635,1723192239074,-151.0,0.0002399,7]
[334549636,1723192239083,-325.48,0.0002399,7]
[334549637,1723192239094,-325.48,0.0002399,7]
[334549638,1723192239104,-1073.100489,0.0002399,7]
[334549639,1723192239113,-1073.100489,0.0002399,7]
[334549640,1723192239123,-151.0,0.0002399,7]
[334549641,1723192239132,-411.698282,0.0002399,7]
[334549642,1723192239142,-411.698282,0.0002399,7]
[334549643,1723192239151,-4351.71715984,0.00024,30]
[334549644,1723192239161,-637.6,0.00024,14]
[334549645,1723192239170,-318.55212607,0.00024,2]
[334549646,1723192239180,-159.0,0.00024164,2]
[334549647,1723192239189,-150.112233,0.000244,3]
[334549648,1723192239199,-4808.48585338,0.00024423,2]
[334549649,1723192239208,-2605.33705453,0.000245,2]
[334549650,1723192239217,-151.0,0.000245,7]
[334549651,1723192239226,-237.481657,0.000245,7]
[334549652,1723192239235,-237.481657,0.000245,7]
[334549653,1723192239244,-951.887719,0.000245,7]
[334549654,1723192239253,-951.887719,0.000245,7]
[334549655,1723192239263,-151.0,0.000245,7]
[334549656,1723192239272,-151.0,0.000245,7]
[334549657,1723192239281,-267.543113,0.000245,7]
[334549658,1723192239290,-267.543113,0.000245,7]
[334549659,1723192239299,-304.078514,0.00024529,7]
[334549660,1723192239309,-304.078514,0.00024529,7]
[334549661,1723192239320,-151.0,0.00024529,7]
[334549662,1723192239329,-151.0,0.00024529,7]
[334549663,1723192239339,-151.0,0.00024646,7]
[334549664,1723192239350,-151.0,0.00024646,7]
[334549665,1723192239360,-151.0,0.00024646,7]
[334549666,1723192239368,-1815.379587,0.00024646,7]
[334549667,1723192239378,-456.771997,0.00024646,7]
[334549668,1723192239387,-1815.379587,0.00024646,7]
[334549669,1723192239397,-456.771997,0.00024646,7]
[334549670,1723192239407,-575.410187,0.00024646,7]
[334549671,1723192239416,-151.0,0.00024646,2]
[334549672,1723192239425,-575.410187,0.00024646,7]
[334549673,1723192239435,-151.0,0.00024646,7]
[334549674,1723192239445,-380.0,0.00024658,2]
[334549675,1723192239454,-4808.48585338,0.00024686,2]
[334549676,1723192239464,-85096.82666276,0.00024868,2]
[334549677,1723192239474,-151.0,0.00024868,7]
[334549678,1723192239483,-151.0,0.00024868,7]
[334549679,1723192239493,-325.48,0.00024868,7]
[334549680,1723192239503,-325.48,0.00024868,7]
[334549681,1723192239512,-1073.100489,0.00024868,7]
[334549682,1723192239522,-1073.100489,0.00024868,7]
[334549683,1723192239531,-151.550525,0.00024868,7]
[334549684,1723192239541,-151.0,0.00024868,7]
[334549685,1723192239551,-411.698282,0.00024868,7]
[334549686,1723192239560,-411.698282,0.00024868,7]
[334549687,1723192239571,-151.0,0.00024868,7]
[334549688,1723192239580,-254.44050928,0.0002487,2]
[334549689,1723192239590,-150.112233,0.000249,4]
[334549690,1723192239599,-6051.11453676,0.000249,2]
[334549691,1723192239608,-320.0,0.00024932,2]
[334549692,1723192239617,-151.0,0.00024944,7]
[334549693,1723192239627,-151.0,0.00024944,7]
[334549694,1723192239637,-91329.2420101,0.0002499,3]
[334549695,1723192239646,-2000.0,0.00024999,2]
[334549696,1723192239655,-1285.11282224,0.00024999,2]
[334549697,1723192239665,-151.0,0.00024999,7]
[334549698,1723192239674,-151.0,0.00024999,7]
[334549699,1723192239683,-325.48,0.00024999,7]
[334549700,1723192239692,-325.48,0.00024999,7]
[334549701,1723192239701,-1073.100489,0.00024999,7]
[334549702,1723192239711,-1073.100489,0.00024999,7]
[334549703,1723192239720,-151.0,0.00024999,7]
[334549704,1723192239729,-411.698282,0.00024999,7]
[334549705,1723192239738,-411.698282,0.00024999,7]
[334549706,1723192239748,-151.832003,0.00024999,7]
[334549708,1723192239758,-189.68346517,0.00025,2]
[334549710,1723192239768,-402.66527594,0.00025,2]
[334549712,1723192239778,-154.77560319,0.00025,2]
[334549713,1723192239787,-23205.7965051,0.00025,30]
[334549714,1723192239796,-151.0,0.00025,7]
[334549715,1723192239806,-151.0,0.00025,7]
[334549716,1723192239815,-157.699907,0.00025,7]
[334549717,1723192239825,-157.699907,0.00025,7]
[334549718,1723192239834,-152.946473,0.00025,7]
[334549719,1723192239843,-151.0,0.00025,7]
[334549720,1723192239856,-263.368071,0.00025,2]
[334549721,1723192239865,-151.0,0.00025,7]
[334549723,1723192239875,-152.069158,0.00025,7]
[334549725,1723192239884,-151.0,0.00025,7]
[334549726,1723192239895,-186.970472,0.00025,7]
[334549728,1723192239906,-151.0,0.00025,7]
[334549730,1723192239915,-320.0,0.00025,2]
[334549732,1723192239924,-1000.0,0.00025,25]
[334549733,1723192239936,-76967.6210705,0.00025,2]
[334549736,1723192241315,-100126.09172235,0.00025,2]
[334549744,1723192242984,-30496.9877158,0.00024858,3]
[334549745,1723192243043,-706.21274397,0.00024858,3]
[334549746,1723192243190,223.26161126,0.00014691,2]
[334549758,1723192254833,301.1738371,0.00014691,2]
[334549759,1723192258196,223.26161126,0.00014691,2]
[334549760,1723192346941,178.546134,0.00014247,2]
[334549774,1723193047181,172.08289,0.00014247,2]
[334549790,1723193374143,-300.0,0.00015611,2]
[334549791,1723193374167,-300.0,0.00015611,2]
[334549792,1723193374188,-3215.12072334,0.00015612,2]
[334549793,1723193427757,601.1945502,9.999e-05,2]
[334549806,1723193432069,-293.56680005,0.00015611,2]
[334549828,1723193438358,-6.43319995,0.00015611,2]
[334549830,1723193438368,-911.9095563,0.00015612,2]
[334549832,1723193438378,-15168.37491212,0.00015612,2]
[334549834,1723193438387,-7002.81077238,0.00015708,2]
[334549836,1723193438397,-1763.75242219,0.00015708,2]
[334549838,1723193438406,-1500.0,0.00015708,2]
[334549841,1723193438416,-165.56810844,0.00015744,2]
[334549843,1723193438426,-738.04892902,0.00015751,2]
[334549845,1723193438437,-2184.8549589,0.00016095,2]
[334549847,1723193438446,-250.0,0.00016446,2]
[334549849,1723193438457,-250.0,0.00016491,2]
[334549851,1723193438466,-250.0,0.00016536,2]
[334549853,1723193438476,-250.0,0.00016581,2]
[334549855,1723193438485,-250.0,0.00016627,2]
[334549857,1723193438495,-250.0,0.00016672,2]
[334549859,1723193438504,-250.0,0.00016717,2]
[334549861,1723193438514,-250.0,0.00016762,2]
[334549863,1723193438524,-250.0,0.00016807,2]
[334549869,1723193438707,-250.0,0.00016852,2]
[334549870,1723193438717,-250.0,0.00016897,2]
[334549871,1723193438726,-250.0,0.00016942,2]
[334549872,1723193438736,-250.0,0.00016987,2]
[334549873,1723193438745,-250.0,0.00017032,2]
[334549874,1723193438754,-250.0,0.00017078,2]
[334549875,1723193438764,-250.0,0.00017123,2]
[334549876,1723193438773,-250.0,0.00017168,2]
[334549877,1723193438783,-420.0,0.00017172,2]
[334549878,1723193438792,-250.0,0.00017213,2]
[334549879,1723193438801,-250.0,0.00017258,2]
[334549880,1723193438811,-154.7755785,0.00017269,2]
[334549881,1723193438821,-250.0,0.00017303,2]
[334549882,1723193438831,-24900.0,0.00017346,2]
[334549883,1723193438840,-1364.15976013,0.00018,2]
[334549884,1723193438849,-587.0,0.00018889,2]
[334549885,1723193438859,-999.47999369,0.00019049,2]
[334549886,1723193438868,-330.88444371,0.00019256,3]
[334549887,1723193438877,-172.183004,0.00019279,2]
[334549888,1723193438886,-2000.0,0.00019999,2]
[334549889,1723193438895,-1285.11282224,0.00019999,2]
[334549890,1723193438905,-1444.60456197,0.0002,2]
[334549891,1723193438914,-426.85877147,0.0002,2]
[334549892,1723193438923,-309.44300337,0.0002,2]
[334549893,1723193438932,-336.38121722,0.0002,2]
[334549894,1723193438942,-179.21924132,0.0002028,2]
[334549895,1723193438951,-823.0,0.00020778,2]
[334549896,1723193438960,-154.79103211,0.00020999,2]
[334549897,1723193438969,-154.82306886,0.00021,2]
[334549898,1723193438979,-297.15758286,0.00021,2]
[334549899,1723193438989,-223.71254295,0.00021011,2]
[334549900,1723193438998,-21922.35986646,0.00021048,2]
[334549901,1723193439007,-494.53502099,0.00021906,2]
[334549902,1723193439017,-157.90486107,0.00021916,2]
[334549903,1723193439026,-200.0,0.00022,2]
[334549904,1723193439036,-504.22103723,0.00022164,2]
[334549905,1723193439045,-882.14952086,0.0002217,2]
[334549906,1723193439055,-153.0,0.00022177,2]
[334549907,1723193439065,-153.0,0.00022177,2]
[334549908,1723193439075,-153.0,0.00022177,2]
[334549909,1723193439084,-153.0,0.00022177,2]
[334549910,1723193439093,-153.0,0.00022177,2]
[334549911,1723193439102,-4808.48585338,0.00022217,2]
[334549912,1723193439112,-27398.772603,0.00022335,3]
[334549913,1723193439121,-4808.48585338,0.00022601,2]
[334549914,1723193439130,-856.56527181,0.0002268,2]
[334549915,1723193439139,-1152.0,0.00022856,2]
[334549916,1723193439148,-4808.48585338,0.00022875,2]
[334549917,1723193439158,-1000.0,0.00023,23]
[334549918,1723193439167,-200.0,0.00023,2]
[334549919,1723193439176,-4808.48585338,0.00023092,2]
[334549920,1723193439188,-153.0,0.00023222,2]
[334549921,1723193439198,-153.0,0.00023222,2]
[334549922,1723193439207,-4808.48585338,0.00023499,2]
[334549923,1723193439216,-4808.48585338,0.00023578,2]
[334549924,1723193439227,-631.82826359,0.00023814,2]
[334549925,1723193439236,-150.112233,0.000239,4]
[334549926,1723193439245,-2702.18836855,0.000239,2]
[334549927,1723193439254,-160.54991199,0.00023953,2]
[334549928,1723193439266,-4808.48585338,0.00023967,2]
[334549929,1723193439276,-27398.772603,0.0002399,3]
[334549930,1723193439285,-472.16409374,0.00023999,2]
[334549931,1723193439294,-4351.71715984,0.00024,30]
[334549932,1723193439304,-19576.08506356,0.00024,9]
[334549933,1723193439315,-1000.0,0.00024,24]
[334549934,1723193439324,-150.112238,0.000241,3]
[334549935,1723193439334,-2702.18836855,0.0002415,2]
[334549936,1723193439344,-27398.772603,0.0002422,3]
[334549937,1723193439353,-335.21294176,0.00024229,2]
[334549938,1723193439363,-500.0,0.00024229,2]
[334549939,1723193439372,-176.16930895,0.00024229,2]
[334549940,1723193439382,-231.45322028,0.00024229,2]
[334549941,1723193439391,-500.0,0.00024229,2]
[334549942,1723193439400,-500.0,0.00024229,2]
[334549943,1723193439409,-500.0,0.00024229,2]
[334549944,1723193439419,-500.0,0.00024229,2]
[334549945,1723193439428,-500.0,0.00024229,2]
[334549946,1723193439438,-500.0,0.00024229,2]
[334549947,1723193439447,-500.0,0.00024229,2]
[334549948,1723193439457,-500.0,0.00024229,2]
[334549949,1723193439467,-500.0,0.00024229,2]
[334549950,1723193439477,-500.0,0.00024229,2]
[334549951,1723193439486,-500.0,0.00024229,2]
[334549952,1723193439496,-500.0,0.00024229,2]
[334549953,1723193439505,-500.0,0.00024229,2]
[334549954,1723193439515,-500.0,0.00024229,2]
[334549955,1723193439525,-500.0,0.00024229,2]
[334549956,1723193439534,-500.0,0.00024229,2]
[334549957,1723193439544,-70604.30224072,0.0002423,11]
[334549958,1723193439554,-4184.36415148,0.0002423,2]
[334549959,1723193439563,-1626.92608275,0.0002423,2]
[334549960,1723193439573,-10493.07332189,0.0002423,2]
[334549961,1723193439582,-8898.20328251,0.0002423,2]
[334549962,1723193439592,-6906.24002027,0.0002423,2]
[334549963,1723193439601,-4808.48585338,0.00024231,2]
[334549964,1723193439610,-150.112233,0.000243,5]
[334549965,1723193439620,-2702.18836855,0.000244,2]
[334549966,1723193439629,-4808.48585338,0.00024493,2]
[334549967,1723193439638,-2605.33705453,0.000245,2]
[334549968,1723193439648,-150.112233,0.000246,2]
[334549969,1723193439657,-27398.772603,0.00024637,3]
[334549970,1723193439666,-151.0,0.00024645,7]
[334549971,1723193439675,-325.48,0.00024645,7]
[334549972,1723193439685,-325.48,0.00024645,7]
[334549973,1723193439694,-1073.100489,0.00024645,7]
[334549974,1723193439703,-951.887719,0.00024645,7]
[334549975,1723193439713,-1073.100489,0.00024645,7]
[334549976,1723193439723,-951.887719,0.00024645,7]
[334549977,1723193439733,-151.0,0.00024645,7]
[334549978,1723193439742,-151.0,0.00024645,7]
[334549980,1723193439751,-39906.92717307,0.00024647,3]
[334549981,1723193439761,-2000.0,0.00024647,2]
[334549982,1723193439770,-54797.545206,0.00024647,3]
[334549983,1723193439780,-151.0,0.00024647,7]
[334549984,1723193439791,-325.48,0.00024647,7]
[334549985,1723193439801,-325.48,0.00024647,7]
[334549986,1723193439811,-1073.100489,0.00024647,7]
[334549987,1723193439822,-1073.100489,0.00024647,7]
[334549988,1723193439834,-951.887719,0.00024647,7]
[334549989,1723193439843,-951.887719,0.00024647,7]
[334549990,1723193439854,-151.550525,0.00024647,7]
[334549991,1723193439864,-151.0,0.00024647,7]
[334549992,1723193439874,-2702.18836855,0.0002465,2]
[334549993,1723193439883,-151.0,0.00024657,7]
[334549994,1723193439892,-151.0,0.00024657,7]
[334549995,1723193439902,-151.0,0.00024657,7]
[334549996,1723193439911,-151.0,0.00024657,7]
[334549997,1723193439921,-1815.379587,0.00024657,7]
[334549998,1723193439930,-1815.379587,0.00024657,7]
[334549999,1723193439939,-151.0,0.00024657,7]
[334550000,1723193439948,-151.0,0.00024657,7]
[334550001,1723193439957,-151.0,0.00024657,7]
[334550002,1723193439966,-16631.94212757,0.00024657,7]
[334550003,1723193439975,-151.0,0.00024657,2]
[334550004,1723193439984,-151.0,0.00024657,7]
[334550005,1723193439994,-325.48,0.00024657,7]
[334550006,1723193440003,-325.48,0.00024657,7]
[334550007,1723193440012,-1073.100489,0.00024657,7]
[334550008,1723193440022,-951.887719,0.00024657,7]
[334550009,1723193440032,-1073.100489,0.00024657,7]
[334550010,1723193440042,-951.887719,0.00024657,7]
[334550011,1723193440051,-151.0,0.00024657,7]
[334550012,1723193440064,-380.0,0.00024658,2]
[334550014,1723193440081,-12640.38108741,0.00024658,2]
[334550016,1723193440090,-27398.772603,0.00024726,3]
[334550018,1723193440100,-151.0,0.00024736,7]
[334550020,1723193440109,-151.0,0.00024736,7]
[334550022,1723193440119,-250.276668,0.00024736,7]
[334550024,1723193440128,-151.0,0.00024736,7]
[334550025,1723193440137,-237.481657,0.00024736,7]
[334550026,1723193440146,-237.481657,0.00024736,7]
[334550027,1723193440156,-267.543113,0.00024736,7]
[334550028,1723193440166,-267.543113,0.00024736,7]
[334550029,1723193440175,-151.0,0.00024736,7]
[334550030,1723193440184,-151.0,0.00024747,7]
[334550031,1723193440195,-151.0,0.00024747,7]
[334550032,1723193440204,-186.970472,0.00024747,7]
[334550033,1723193440213,-151.0,0.00024747,7]
[334550034,1723193440230,-151.0,0.00024747,7]
[334550035,1723193440240,-334.334566,0.00024747,7]
[334550036,1723193440249,-334.334566,0.00024747,7]
[334550037,1723193440258,-304.078514,0.00024747,7]
[334550038,1723193440270,-304.078514,0.00024747,7]
[334550039,1723193440279,-151.0,0.00024747,7]
[334550040,1723193440288,-151.0,0.00024747,7]
[334550041,1723193440298,-151.0,0.00024747,7]
[334550042,1723193440307,-151.0,0.00024747,7]
[334550043,1723193440317,-151.0,0.00024747,7]
[334550044,1723193440326,-151.0,0.00024747,7]
[334550045,1723193440335,-1815.379587,0.00024747,7]
[334550046,1723193440345,-401.25591311,0.00024747,7]
[334550047,1723193440761,-1414.12367389,0.00024747,7]
[334550048,1723193440772,-151.0,0.00024747,7]
[334550049,1723193440782,-151.0,0.00024747,7]
[334550050,1723193440792,-151.0,0.00024747,7]
[334550051,1723193440804,-151.0,0.00024747,2]
[334550052,1723193440818,-152.946473,0.00024748,7]
[334550053,1723193440838,-151.0,0.00024748,7]
[334550054,1723193440852,-263.368071,0.00024748,2]
[334550055,1723193440864,-151.0,0.00024748,7]
[334550056,1723193440876,-151.0,0.00024748,7]
[334550057,1723193440887,-151.0,0.00024748,7]
[334550058,1723193440897,-151.0,0.00024748,7]
[334550059,1723193440912,-160.518571,0.00024748,7]
[334550060,1723193440924,-151.0,0.00024748,7]
[334550061,1723193440935,-82.75463192,0.00024748,7]
[334550062,1723193441401,-301.1738371,0.00020721,2]
[334550063,1723193441412,-456.771997,0.0002423,7]
[334550064,1723193441424,-154.72702508,0.00024748,7]
[334550065,1723193441434,-237.481657,0.00024748,7]
[334550066,1723193441447,-267.543113,0.00024748,7]
[334550067,1723193441457,-267.543113,0.00024748,7]
[334550068,1723193441469,-151.0,0.00024758,7]
[334550069,1723193441481,-151.0,0.00024758,7]
[334550070,1723193441493,-157.699907,0.00024758,7]
[334550071,1723193441505,-157.699907,0.00024758,7]
[334550072,1723193441516,-150.112233,0.000248,3]
[334550073,1723193441528,-4808.48585344,0.0002484,2]
[334550074,1723193441542,-2702.18836855,0.000249,2]
[334550075,1723193441553,-395.0,0.00024932,2]
[334550076,1723193441567,-156.0,0.00024932,2]
[334550077,1723193441580,-267.8162636,0.00024932,2]
[334550078,1723193441590,-153.0,0.00024932,2]
[334550079,1723193441600,-153.0,0.00024932,2]
[334550080,1723193441610,-267.8162636,0.00024932,2]
[334550081,1723193441620,-153.0,0.00024932,2]
[334550082,1723193441630,-267.8162636,0.00024932,2]
[334550083,1723193441641,-151.0,0.0002498,7]
[334550084,1723193441653,-325.48,0.0002498,7]
[334550085,1723193441665,-325.48,0.0002498,7]
[334550086,1723193441676,-1073.100489,0.0002498,7]
[334550087,1723193441688,-951.887719,0.0002498,7]
[334550088,1723193441698,-1073.100489,0.0002498,7]
[334550089,1723193441708,-951.887719,0.0002498,7]
[334550090,1723193441721,-151.0,0.0002498,7]
[334550091,1723193441731,-6917.37174239,0.0002498,3]
[334550096,1723193446256,-456.771997,0.0002423,7]
[334550097,1723193446270,-575.410187,0.00024645,7]
[334550098,1723193446281,-429.444554,0.00024645,7]
[334550099,1723193446290,-456.771997,0.00024647,7]
[334550100,1723193446299,-575.410187,0.00024647,7]
[334550101,1723193446309,-429.444554,0.00024647,7]
[334550102,1723193446320,-456.771997,0.00024647,7]
[334550103,1723193446330,-575.410187,0.00024657,7]
[334550104,1723193446339,-429.444554,0.00024657,7]
[334550105,1723193446349,-456.771997,0.00024658,7]
[334550106,1723193446360,-456.771997,0.00024658,7]
[334550108,1723193446370,-575.410187,0.0002498,7]
[334550110,1723193446380,-429.444554,0.0002498,7]
[334550112,1723193446389,-20481.40086061,0.0002498,3]
[334550114,1723193446400,-151.0,0.0002499,7]
[334550116,1723193446410,-151.0,0.0002499,7]
[334550118,1723193446419,-157.699907,0.0002499,7]
[334550120,1723193446430,-157.699907,0.0002499,7]
[334550122,1723193446440,-151.0,0.0002499,7]
[334550123,1723193446450,-151.0,0.0002499,7]
[334550124,1723193446459,-151.0,0.0002499,7]
[334550125,1723193446469,-151.0,0.0002499,7]
[334550126,1723193446479,-151.0,0.0002499,7]
[334550127,1723193446489,-151.0,0.0002499,7]
[334550128,1723193446727,-151.0,0.0002499,7]
[334550129,1723193446738,-151.832003,0.0002499,7]
[334550130,1723193446749,-334.334566,0.0002499,7]
[334550131,1723193446758,-334.334566,0.0002499,7]
[334550132,1723193446768,-304.078514,0.0002499,7]
[334550133,1723193446777,-304.078514,0.0002499,7]
[334550134,1723193446787,-151.0,0.0002499,7]
[334550135,1723193446796,-151.0,0.0002499,7]
[334550136,1723193446806,-151.0,0.0002499,7]
[334550137,1723193446816,-155.53101,0.0002499,7]
[334550138,1723193446825,-237.481657,0.0002499,7]
[334550139,1723193446834,-237.481657,0.0002499,7]
[334550140,1723193446844,-27398.772603,0.0002499,3]
[334550141,1723193446854,-267.543113,0.0002499,7]
[334550142,1723193446863,-267.543113,0.0002499,7]
[334550143,1723193446873,-151.0,0.0002499,7]
[334550144,1723193446882,-151.0,0.0002499,7]
[334550145,1723193446891,-151.0,0.0002499,7]
[334550146,1723193446901,-1815.379587,0.0002499,7]
[334550147,1723193446910,-1815.379587,0.0002499,7]
[334550148,1723193446920,-151.0,0.0002499,7]
[334550149,1723193446930,-151.0,0.0002499,7]
[334550150,1723193446939,-151.0,0.0002499,7]
[334550151,1723193446948,-151.0,0.0002499,2]
[334550152,1723193446958,-456.771997,0.0002499,7]
[334550153,1723193446967,-456.771997,0.0002499,7]
[334550154,1723193446976,-28334.3,0.0002499,3]
[334550155,1723193446985,-152.069158,0.00024999,7]
[334550156,1723193446995,-49143.5551797,0.00025,2]
[334550157,1723193447005,-402.66527594,0.00025,2]
[334550158,1723193447014,-23205.7965051,0.00025,30]
[334550159,1723193447024,-189.68346517,0.00025,2]
[334550160,1723193447033,-154.79103211,0.00025,2]
[334550161,1723193447042,-150.112233,0.00025,7]
[334550162,1723193447052,-151.0,0.00025,7]
[334550163,1723193447062,-151.0,0.00025,7]
[334550164,1723193447072,-151.0,0.00025,7]
[334550165,1723193447082,-157.699907,0.00025,7]
[334550166,1723193447091,-157.699907,0.00025,7]
[334550167,1723193447100,-185.260226,0.00025,7]
[334550168,1723193447110,-224.26819,0.00025,7]
[334550169,1723193447119,-153.846739,0.00025,7]
[334550170,1723193447129,-151.0,0.00025,7]
[334550171,1723193447138,-151.0,0.00025,7]
[334550172,1723193447148,-151.0,0.00025,7]
[334550173,1723193447157,-395.0,0.00025,2]
[334550174,1723193447167,-334.334566,0.00025,7]
[334550175,1723193447177,-334.334566,0.00025,7]
[334550176,1723193447188,-304.078514,0.00025,7]
[334550177,1723193447198,-304.078514,0.00025,7]
[334550178,1723193447207,-151.0,0.00025,7]
[334550179,1723193447216,-151.0,0.00025,7]
[334550180,1723193447227,-151.0,0.00025,7]
[334550181,1723193447237,-237.481657,0.00025,7]
[334550182,1723193447247,-237.481657,0.00025,7]
[334550183,1723193447256,-267.543113,0.00025,7]
[334550184,1723193447269,-267.543113,0.00025,7]
[334550185,1723193447278,-151.0,0.00025,7]
[334550186,1723193447288,-151.0,0.00025,7]
[334550187,1723193447297,-1815.379587,0.00025,7]
[334550188,1723193447307,-151.0,0.00025,7]
[334550189,1723193447317,-1815.379587,0.00025,7]
[334550190,1723193447326,-154.227697,0.00025,7]
[334550191,1723193447336,-151.0,0.00025,7]
[334550192,1723193447347,-151.0,0.00025,7]
[334550193,1723193447357,-151.0,0.00025,2]
[334550194,1723193447367,-151.0,0.00025,7]
[334550195,1723193447377,-325.48,0.00025,7]
[334550196,1723193447386,-325.48,0.00025,7]
[334550197,1723193447395,-1073.100489,0.00025,7]
[334550198,1723193447405,-951.887719,0.00025,7]
[334550199,1723193447416,-1073.100489,0.00025,7]
[334550200,1723193447427,-951.887719,0.00025,7]
[334550201,1723193447438,-156.0,0.00025,2]
[334550202,1723193447450,-456.771997,0.00025,7]
[334550203,1723193447459,-575.410187,0.00025,7]
[334550204,1723193447467,-429.444554,0.00025,7]
[334550205,1723193447476,-456.771997,0.00025,7]
[334550206,1723193447486,-620.59141318,0.00025005,2]
[334550207,1723193447495,-1613.0,0.00025142,2]
[334550208,1723193447504,-150.112233,0.000252,9]
[334550209,1723193447514,-162.1950708,0.00025359,2]
[334550210,1723193447523,-153.0,0.00025359,2]
[334550211,1723193447533,-153.0,0.00025359,2]
[334550212,1723193447542,-535.6325272,0.0002537,2]
[334550213,1723193447551,-306.0,0.0002537,2]
[334550214,1723193447561,-294.5666805,0.0002537,2]
[334550215,1723193447572,-150.112233,0.000254,6]
[334550216,1723193447582,-150.112233,0.000255,7]
[334550217,1723193447591,-150.0,0.00025616,2]